bitfinex/quotes_ETHUSD_20250715
["timestamp","ask_amount","ask_price","bid_price","bid_amount"]
[1752549861079,0.1696,2946.6,2946.5,0.31722072]
[1752549861319,6.1136,2946.6,2946.5,0.31722072]
[1752549862109,6.1056,2946.6,2946.5,0.31722072]
[1752549862310,6.1056,2946.6,2946.1,0.4567]
[1752549862311,0.1616,2946.6,2946.1,0.4567]
[1752549862519,0.1616,2946.6,2946.3,3.39403041]
[1752549862815,0.1616,2946.6,2946.2,0.86735362]
[1752549862816,0.1616,2946.6,2946.4,3.71128663]
[1752549863117,0.1616,2946.6,2946.5,0.31735362]
[1752549863322,0.1616,2946.6,2946.5,0.31734393]
[1752549864022,0.1616,2946.6,2946.3,0.55]
[1752549864196,0.1616,2946.6,2946.3,3.94408354]
[1752549864396,0.1616,2946.6,2946.2,13.94414817]
[1752549864609,0.1616,2946.6,2946.4,3.39386318]
[1752549864798,5.939,2946.5,2946.4,3.39386318]
[1752549865006,0.1616,2946.6,2946.5,3.39385711]
[1752549865341,6.0996,2946.6,2946.5,4.40055711]
[1752549865832,0.1616,2946.6,2946.5,6.31639713]
[1752549865991,0.7511,2947.3,2946.5,6.31639713]
[1752549865992,0.1696,2947.2,2946.5,3.09214002]
[1752549866193,5.936,2947.1,2946.9,3.39330479]
[1752549866392,5.936,2947.1,2947.0,3.71057929]
[1752549867602,5.936,2947.1,2947.0,4.26057929]
[1752549868023,5.936,2947.1,2947.0,0.86729799]
[1752549868322,5.936,2947.1,2947.0,4.26057929]
[1752549868489,5.936,2947.1,2947.0,0.86729799]
[1752549868992,5.936,2947.1,2947.0,4.26057929]
[1752549869794,5.936,2947.1,2947.0,0.86729799]
[1752549870130,5.936,2947.1,2947.0,4.26057929]
[1752549871296,5.936,2947.1,2947.0,4.71727929]
[1752549873396,0.001,2947.5,2947.4,3.94282079]
[1752549873596,5.925,2947.5,2947.4,3.94282079]
[1752549873827,5.925,2947.5,2947.4,4.25954565]
[1752549873995,5.925,2947.5,2947.4,4.71624565]
[1752549874196,5.925,2947.5,2947.4,4.71620616]
[1752549874726,5.925,2947.5,2947.4,4.25950616]
[1752549875132,5.925,2947.5,2947.4,4.71620616]
[1752549875434,0.001,2947.5,2947.4,4.71620616]
[1752549875652,0.001,2947.5,2947.4,5.33619938]
[1752549875831,0.001,2947.5,2947.4,4.42910616]
[1752549876033,0.001,2947.5,2947.4,4.88580616]
[1752549876233,0.001,2947.5,2947.4,4.42910616]
[1752549877511,0.001,2947.5,2947.4,4.46303436]
[1752549877712,0.001,2947.5,2947.4,4.42910616]
[1752549877915,5.918,2947.5,2947.4,4.42910616]
[1752549879340,0.001,2947.5,2947.4,4.88580616]
[1752549879540,5.915,2947.5,2947.4,4.46303436]
[1752549879737,5.915,2947.5,2947.4,4.42910616]
[1752549881381,5.915,2947.5,2947.4,4.86010616]
[1752549881547,0.001,2947.5,2947.4,4.89403436]
[1752549882096,0.001,2947.5,2947.4,4.86010616]
[1752549882596,0.001,2947.5,2947.4,4.89343448]
[1752549883097,0.001,2947.5,2947.4,14.89343448]
[1752549883293,0.001,2947.5,2947.4,14.85950581]
[1752549883577,0.001,2947.5,2947.4,16.68814189]
[1752549884866,0.001,2947.5,2947.4,17.47424189]
[1752549886373,0.001,2947.5,2947.4,23.37824189]
[1752549886576,0.001,2947.6,2947.5,13.94270568]
[1752549886778,0.001,2947.6,2947.5,17.50675666]
[1752549887098,0.001,2947.6,2947.5,27.8964666]
[1752549887302,1e-08,2947.9,2947.8,13.9423604]
[1752549887589,1e-08,2947.9,2947.8,20.15944542]
[1752549887884,1e-08,2947.9,2947.8,14.42804542]
[1752549888091,1e-08,2947.9,2947.8,16.64109639]
[1752549888756,1e-08,2947.9,2947.8,17.42719639]
[1752549888953,1e-08,2947.9,2947.8,23.32719639]
[1752549889886,1e-08,2947.9,2947.8,17.42719639]
[1752549890185,1e-08,2947.9,2947.8,23.32419639]
[1752549890754,1e-08,2947.9,2947.8,17.42719639]
[1752549891383,1e-08,2947.9,2947.8,16.44659567]
[1752549891565,1e-08,2947.9,2947.8,13.8784447]
[1752549891865,1e-08,2947.9,2947.8,14.4284447]
[1752549892252,1e-08,2947.9,2947.8,14.8594447]
[1752549892878,1e-08,2947.9,2947.8,20.7524447]
[1752549893091,1e-08,2947.9,2947.8,23.95303571]
[1752549894993,1e-08,2947.9,2947.8,18.06003571]
[1752549895155,1e-08,2947.9,2947.8,23.94903571]
[1752549895360,1e-08,2947.9,2947.8,23.51703571]
[1752549895785,1e-08,2947.9,2947.8,17.62903571]
[1752549896064,1e-08,2947.9,2947.8,18.06003571]
[1752549896564,0.001,2948.4,2948.3,0.55]
[1752549896761,0.001,2948.4,2948.3,4.25826939]
[1752549897061,0.001,2948.4,2948.3,3.70826939]
[1752549897601,0.001,2948.4,2948.3,4.25826939]
[1752549897791,0.001,2948.4,2948.3,5.20896586]
[1752549898164,0.001,2948.4,2948.3,5.67388371]
[1752549898364,0.001,2948.4,2948.3,5.63996586]
[1752549898565,0.001,2948.4,2948.3,5.20896586]
[1752549898902,0.001,2948.4,2948.3,15.20896586]
[1752549899109,0.001,2948.4,2948.3,15.63996586]
[1752549899476,0.001,2948.4,2948.3,16.42056586]
[1752549900371,0.001,2948.4,2948.3,16.42058174]
[1752549900697,0.001,2948.7,2948.6,13.94144]
[1752549900895,0.001,2948.7,2948.6,14.25794018]
[1752549901096,0.001,2948.7,2948.6,14.42674018]
[1752549901510,0.001,2948.7,2948.6,14.4267799]
[1752549902504,0.001,2948.7,2948.6,14.8577799]
[1752549902708,0.001,2948.7,2948.6,17.59530919]
[1752549903512,0.001,2948.7,2948.6,28.34881913]
[1752549903714,0.001,2949.0,2948.6,28.34881913]
[1752549903715,0.001,2949.0,2948.9,3.94109498]
[1752549903934,0.001,2949.0,2948.9,20.92643488]
[1752549904147,0.001,2949.0,2948.9,21.35743488]
[1752549904293,0.001,2949.6,2949.2,13.94075003]
[1752549904633,0.001,2949.6,2949.2,21.09388993]
[1752549904801,0.001,2949.6,2949.2,21.52488993]
[1752549905196,0.001,2949.6,2949.2,15.65188993]
[1752549905396,0.001,2949.6,2949.2,24.42403578]
[1752549906134,0.001,2949.6,2949.2,24.42303578]
[1752549906739,0.001,2949.6,2949.5,13.94040515]
[1752549907035,0.001,2949.6,2949.5,20.93614505]
[1752549907193,0.001,2949.6,2949.5,21.10494505]
[1752549907390,0.001,2949.6,2949.5,24.78391101]
[1752549907591,1e-08,2949.6,2949.5,24.78391101]
[1752549907852,0.9287,2950.7,2950.6,3.38914119]
[1752549907998,5.869,2950.8,2950.3,3.38948581]
[1752549908195,6.3376,2950.8,2950.7,0.55]
[1752549908444,6.3376,2950.8,2950.7,0.86602785]
[1752549908756,0.4686,2950.8,2950.6,0.1688]
[1752549908982,0.7599,2951.0,2950.7,0.31586739]
[1752549909145,0.7599,2951.0,2950.6,0.1688]
[1752549909146,0.7599,2951.0,2950.8,0.31586739]
[1752549909330,4.14866575,2951.0,2950.9,0.31586739]
[1752549909642,4.90248943,2951.0,2950.9,0.31586739]
[1752549910092,5.37108943,2951.0,2950.9,0.31586739]
[1752549910262,1.98232368,2951.0,2950.9,0.31586739]
[1752549910462,4.6171818,2951.0,2950.9,0.31586739]
[1752549911262,4.6171818,2951.0,2950.9,0.31543139]
[1752549911932,3.3897156,2950.1,2950.0,0.1688]
[1752549912162,3.39001076,2949.9,2949.3,3.39053557]
[1752549912470,10.47329138,2950.1,2949.4,0.0339052]
[1752549912471,7.0835,2950.1,2949.4,0.0339052]
[1752549912678,0.8053,2950.4,2950.2,3.3895342]
[1752549912828,0.4718,2950.3,2950.0,0.1688]
[1752549913031,0.9741,2950.4,2950.2,3.3896007]
[1752549913243,0.9741,2950.4,2950.3,3.38948581]
[1752549913568,0.9741,2950.4,2950.1,3.38969532]
[1752549913569,1.4459,2950.4,2950.2,3.38952999]
[1752549913773,1.4459,2950.4,2949.4,1.34246309]
[1752549913774,0.4718,2950.3,2949.8,3.39003498]
[1752549913990,0.4718,2950.3,2949.4,10.58992962]
[1752549913991,3.55849309,2950.2,2949.7,0.1688]
[1752549914163,0.7942,2950.0,2949.1,0.7527]
[1752549914362,0.1688,2949.7,2949.2,0.1688]
[1752549914670,0.1688,2949.3,2948.9,0.03391094]
[1752549914872,0.1688,2949.4,2949.1,10.0]
[1752549915276,0.4718,2949.3,2949.1,10.0]
[1752549915489,0.4718,2949.3,2949.1,3.3908078]
[1752549915789,0.4718,2949.3,2949.2,10.0]
[1752549916094,0.4718,2949.3,2948.8,0.1688]
[1752549916261,0.4718,2949.2,2948.8,3.55994762]
[1752549916477,0.4718,2949.1,2948.2,7.1455]
[1752549916678,4.17667904,2949.0,2948.6,0.1688]
[1752549916912,4.17667904,2949.0,2948.2,1.2925]
[1752549916913,0.4718,2948.9,2948.4,3.39162856]
[1752549917124,0.4718,2948.8,2948.4,3.56042856]
[1752549917404,0.9544,2948.5,2948.0,3.56165256]
[1752549917626,0.4718,2948.4,2948.0,0.1696]
[1752549917805,0.9544,2948.5,2948.1,10.0]
[1752549917806,4.34596697,2948.5,2948.1,10.0]
[1752549918024,0.4718,2948.3,2947.8,0.002]
[1752549918512,0.1688,2948.2,2948.1,3.39201519]
[1752549918692,0.6406,2948.2,2947.9,3.0]
[1752549918902,0.4718,2948.1,2947.8,10.002]
[1752549919108,0.4718,2948.0,2947.8,10.002]
[1752549919412,0.4718,2948.0,2947.9,3.39224532]
[1752549919617,0.1688,2948.2,2947.9,3.39224532]
[1752549919992,0.4718,2948.1,2947.8,3.39432347]
[1752549920319,0.1688,2948.2,2947.8,3.39432347]
[1752549920320,0.1688,2948.2,2947.8,0.552]
[1752549920488,0.1688,2948.2,2948.1,3.39201519]
[1752549920690,5.848,2948.3,2948.2,3.39190014]
[1752549921520,1.234,2948.8,2948.3,0.55]
[1752549921830,6.0168,2948.7,2948.4,3.39167005]
[1752549922127,5.848,2948.7,2948.6,3.39144]
[1752549922430,5.848,2948.7,2948.6,3.94144]
[1752549922651,3.86215009,2949.6,2948.7,0.55]
[1752549922800,6.0148,2949.2,2949.0,3.39096535]
[1752549923005,6.0148,2949.2,2949.1,3.390865]
[1752549923006,5.845,2949.2,2949.1,3.390865]
[1752549923321,5.845,2949.2,2949.1,3.940865]
[1752549923689,0.1688,2949.7,2949.3,0.55]
[1752549924009,0.1688,2949.7,2949.6,3.9402902]
[1752549924190,5.844,2949.9,2949.7,0.55]
[1752549924390,0.1688,2950.1,2950.0,13.3898305]
[1752549924700,0.8225,2950.3,2950.2,3.3896007]
[1752549925030,0.9913,2950.3,2950.2,3.70535845]
[1752549925328,0.1688,2950.3,2950.2,3.70535845]
[1752549925735,5.843,2950.4,2950.3,3.93948581]
[1752549926085,5.843,2950.4,2950.3,5.37559402]
[1752549926426,5.843,2950.4,2950.3,15.37556699]
[1752549926629,0.9931,2951.0,2950.8,3.38891148]
[1752549926799,0.9931,2951.0,2950.9,3.7045403]
[1752549927125,6.8321,2951.0,2950.9,0.31574367]
[1752549927341,6.6633,2951.0,2950.9,4.2545403]
[1752549927490,6.6633,2951.0,2950.9,0.86574367]
[1752549927690,6.6633,2951.0,2950.9,4.2545403]
[1752549927898,0.001,2951.0,2950.9,4.2545403]
[1752549928317,0.001,2951.0,2950.9,14.28842826]
[1752549928520,0.001,2951.0,2950.9,10.86574367]
[1752549928726,0.001,2951.0,2950.9,14.2545403]
[1752549929094,0.001,2951.0,2950.9,14.7274403]
[1752549931030,0.001,2951.0,2950.9,20.5604403]
[1752549931345,0.001,2951.0,2950.9,22.95537528]
[1752549931495,0.001,2951.0,2950.9,14.2545403]
[1752549932403,0.001,2951.0,2950.9,10.86574367]
[1752549933158,0.001,2951.0,2950.9,14.7274403]
[1752549933444,0.001,2951.0,2950.9,14.2545403]
[1752549933957,0.001,2951.0,2950.9,14.7274403]
[1752549934250,0.001,2951.2,2950.9,14.7274403]
[1752549934251,0.001,2951.2,2951.1,3.93856697]
[1752549934409,0.001,2951.2,2951.1,14.25431064]
[1752549934610,0.7939,2951.8,2951.6,3.38791453]
[1752549934812,0.7939,2951.8,2951.7,3.70241908]
[1752549935284,0.7949,2952.2,2951.9,0.55]
[1752549935565,0.7949,2952.2,2951.3,13.08791088]
[1752549935566,0.4718,2952.1,2952.0,0.31454149]
[1752549935724,6.6199,2952.2,2952.0,0.86454149]
[1752549935928,0.7949,2952.2,2952.1,3.70196061]
[1752549936166,0.7949,2952.2,2952.1,0.31454149]
[1752549936323,1.2667,2952.2,2952.1,0.31454149]
[1752549936527,7.0897,2952.2,2952.1,0.31454149]
[1752549937066,10.47700438,2952.2,2952.1,0.31454149]
[1752549938152,10.47700438,2952.2,2950.6,3.38909438]
[1752549938153,16.2958,2952.2,2950.8,0.1688]
[1752549938327,0.9627,2951.1,2950.6,3.55785516]
[1752549938532,0.4718,2951.0,2950.6,0.1688]
[1752549938786,0.4718,2951.0,2950.2,0.8321]
[1752549938787,0.1688,2950.7,2950.3,3.38944141]
[1752549938943,0.4718,2950.6,2950.2,3.55835254]
[1752549939263,0.4718,2950.6,2950.3,10.55]
[1752549939566,5.9878,2950.7,2950.5,10.0]
[1752549939866,6.4596,2950.7,2950.4,3.38936651]
[1752549940061,0.4718,2950.6,2950.2,3.91418311]
[1752549940279,0.4718,2950.6,2949.6,3.39020066]
[1752549940280,0.4718,2950.5,2949.5,1.2566]
[1752549940481,0.1688,2950.1,2949.9,3.38988719]
[1752549940784,0.1688,2949.9,2949.4,3.39050675]
[1752549940981,6.2741,2949.8,2949.6,10.0]
[1752549941349,6.2741,2949.8,2949.4,3.55926898]
[1752549941680,6.2741,2949.8,2949.5,3.39040319]
[1752549941881,5.817,2949.8,2949.5,3.39040319]
[1752549942550,5.817,2949.8,2949.6,3.39022727]
[1752549942887,0.1688,2949.9,2949.8,3.94006034]
[1752549943094,5.816,2950.1,2949.8,3.94002267]
[1752549943384,5.816,2950.1,2949.6,0.86375382]
[1752549943570,5.814,2950.0,2949.7,3.39007061]
[1752549943882,5.814,2950.0,2949.7,3.39012429]
[1752549944193,5.814,2950.0,2949.6,0.1688]
[1752549944360,0.7505,2950.3,2950.0,3.38976527]
[1752549944554,5.813,2950.2,2950.0,3.38976527]
[1752549944956,5.813,2950.2,2950.1,3.3897156]
[1752549946549,6.2701,2950.2,2949.8,10.1688]
[1752549946755,0.1688,2950.1,2949.9,3.38988274]
[1752549947086,5.81,2950.0,2949.9,3.93994542]
[1752549947450,0.8279,2949.9,2949.7,3.39011658]
[1752549947651,0.1688,2950.0,2949.8,3.94006034]
[1752549947868,0.8279,2950.6,2950.1,3.3897156]
[1752549948104,6.4349,2950.5,2950.2,3.38959374]
[1752549948467,5.9778,2950.5,2950.2,3.38950599]
[1752549948668,6.4349,2950.5,2950.2,3.38950599]
[1752549948866,6.4349,2950.5,2950.3,3.38948207]
[1752549949068,6.4349,2950.5,2950.1,3.93970987]
[1752549949069,6.4349,2950.5,2950.2,3.38956468]
[1752549949493,6.4349,2950.5,2950.3,3.3894538]
[1752549949694,0.8279,2950.6,2950.4,3.38937093]
[1752549949875,5.807,2950.5,2950.4,3.38937093]
[1752549950406,5.807,2950.5,2950.3,3.38947338]
[1752549950586,6.2641,2950.5,2950.2,3.93959396]
[1752549951115,0.1688,2950.6,2950.2,0.55]
[1752549951289,5.806,2950.5,2950.4,3.38932911]
[1752549951471,0.1688,2950.6,2950.5,3.38925605]
[1752549951809,5.9738,2950.6,2950.2,0.55]
[1752549952297,5.9738,2950.6,2950.5,3.38925605]
[1752549953311,5.805,2950.6,2950.5,4.61711801]
[1752549954069,5.805,2950.6,2950.5,0.55]
[1752549954271,5.805,2950.6,2950.5,3.93925605]
[1752549955206,5.805,2950.6,2950.5,0.55]
[1752549955591,6.2621,2950.6,2950.4,0.1688]
[1752549955790,0.1688,2950.5,2950.2,3.3896007]
[1752549956419,0.1688,2950.5,2950.1,3.389714]
[1752549956593,0.1688,2950.5,2950.2,3.38953875]
[1752549956788,0.1688,2950.5,2950.1,10.0]
[1752549956789,0.6259,2950.5,2950.1,0.55]
[1752549957002,0.6259,2950.5,2950.2,3.38958754]
[1752549957206,0.1688,2950.5,2950.2,3.38958754]
[1752549957401,0.1688,2950.5,2950.1,3.93971223]
[1752549957402,0.1688,2950.5,2950.3,3.3894763]
[1752549957592,0.1688,2950.5,2950.2,13.38954004]
[1752549958207,0.1688,2950.5,2950.1,13.93970558]
[1752549958399,0.1688,2950.5,2950.2,3.38950107]
[1752549958593,0.4571,2950.4,2950.1,10.0]
[1752549958800,6.2521,2950.3,2949.4,3.39045398]
[1752549959051,0.1688,2950.1,2949.4,0.1688]
[1752549959220,3.39034921,2949.6,2949.3,0.002]
[1752549959386,5.794,2949.5,2949.3,0.002]
[1752549959586,6.2511,2949.5,2949.3,0.002]
[1752549960119,0.1688,2949.7,2949.3,0.002]
[1752549960120,5.794,2949.6,2949.4,3.39040597]
[1752549960322,5.794,2949.6,2949.5,3.39040515]
[1752549961228,5.792,2949.9,2949.8,3.94006034]
[1752549961388,5.9608,2950.2,2949.8,3.94006034]
[1752549961584,5.9608,2950.2,2949.8,4.1088478]
[1752549961816,5.9608,2950.2,2950.1,3.3897156]
[1752549962338,5.9608,2950.2,2949.9,3.38994542]
[1752549962546,3.38992026,2950.0,2949.8,0.7188]
[1752549962845,3.38992026,2950.0,2949.4,3.39046395]
[1752549962846,3.39006034,2949.8,2949.4,0.1688]
[1752549962990,5.79,2949.9,2949.5,3.39039177]
[1752549963196,5.79,2949.9,2949.5,3.39035461]
[1752549963197,0.1688,2949.7,2949.5,3.39035461]
[1752549963394,0.6259,2949.7,2949.4,10.0]
[1752549963615,0.1688,2949.7,2949.3,0.552]
[1752549963798,0.1688,2949.7,2949.4,3.39048065]
[1752549964002,6.2461,2949.6,2949.3,0.552]
[1752549964841,9.63647772,2949.6,2949.3,0.552]
[1752549965045,3.3905201,2949.4,2949.3,0.002]
[1752549965645,3.8476201,2949.4,2949.3,0.002]
[1752549965958,4.5983201,2949.4,2949.3,0.002]
[1752549966111,14.5983201,2949.4,2949.3,0.002]
[1752549966654,20.3843201,2949.4,2949.3,0.002]
[1752549966950,10.3843201,2949.4,2949.3,0.002]
[1752549968700,20.3843201,2949.4,2949.3,1e-08]
[1752549971347,10.3843201,2949.4,2949.3,1e-08]
[1752549971653,6.5367,2949.4,2949.3,1e-08]
[1752549972021,1.2857,2949.7,2948.8,0.55]
[1752549972222,5.78,2949.6,2949.3,3.39060084]
[1752549972421,5.78,2949.6,2949.4,3.39050541]
[1752549972649,5.78,2949.6,2949.5,3.39040515]
[1752549973374,0.8234,2950.0,2949.2,0.4568]
[1752549973532,5.779,2949.9,2949.8,3.39004595]
[1752549974188,5.779,2949.9,2949.8,3.84684595]
[1752549974679,5.778,2950.0,2949.8,3.39006034]
[1752549975176,5.778,2950.0,2949.7,3.39017]
[1752549976562,1.2707,2949.9,2949.4,3.39046228]
[1752549976762,5.778,2950.0,2949.3,0.55]
[1752549976955,5.778,2950.0,2949.6,3.39021894]
[1752549977157,5.778,2950.0,2949.7,3.39015844]
[1752549978448,8.136,2950.6,2950.1,3.38966512]
[1752549978449,3.38914634,2950.6,2950.1,3.38966512]
[1752549978648,5.772,2950.5,2950.1,3.38966512]
[1752549978852,5.9408,2950.5,2950.3,3.38937895]
[1752549979153,5.9408,2950.5,2950.0,0.1688]
[1752549979154,5.9408,2950.5,2950.1,3.38963185]
[1752549979354,5.9408,2950.5,2950.3,3.38948191]
[1752549979777,0.814,2950.9,2950.3,3.38943511]
[1752549979948,0.1688,2950.7,2950.2,3.55832965]
[1752549980275,0.1688,2950.7,2950.2,0.1688]
[1752549980438,0.1688,2950.7,2950.6,3.38914119]
[1752549980638,5.77,2950.8,2950.7,3.38902633]
[1752549980862,5.77,2950.8,2950.5,0.1688]
[1752549981176,6.36398,2950.8,2950.7,3.38902633]
[1752549981354,5.77,2950.8,2950.6,3.38910366]
[1752549981736,6.2323,2950.8,2950.7,0.31580391]
[1752549981984,9.62121148,2950.8,2950.7,0.31580391]
[1752549982479,10.37711148,2950.8,2950.7,0.31580391]
[1752549983279,9.15491148,2950.8,2950.7,0.31580391]
[1752549983442,5.766,2950.8,2950.7,0.31580391]
[1752549984041,0.001,2951.0,2950.8,4.18631967]
[1752549984274,0.001,2951.0,2950.9,0.31580391]
[1752549985054,5.765,2951.0,2950.9,0.31580391]
[1752549985254,0.001,2951.0,2950.9,3.70460054]
[1752549985475,0.001,2951.0,2950.9,4.16140054]
[1752549986681,0.001,2951.0,2950.9,4.16116551]
[1752549987001,0.001,2951.0,2950.9,3.84559663]
[1752549987201,0.001,2951.0,2950.9,4.16116492]
[1752549987367,0.001,2951.0,2950.9,6.30826019]
[1752549987566,0.001,2951.0,2950.9,6.1614919]
[1752549987903,0.001,2951.0,2950.9,5.98623246]
[1752549988094,0.001,2951.0,2950.9,5.23122515]
[1752549988287,0.001,2951.0,2950.9,0.48422852]
[1752549988694,0.001,2951.0,2950.9,0.31542852]
[1752549988891,4.6713818,2951.0,2950.9,0.31542852]
[1752549989603,14.6713818,2951.0,2950.9,0.31542852]
[1752549989967,0.1688,2950.9,2949.6,0.0339029]
[1752549990171,0.1688,2950.1,2949.5,0.1688]
[1752549990385,5.757,2950.0,2949.5,0.1688]
[1752549990562,9.60921771,2950.0,2949.5,0.1688]
[1752549990763,0.1688,2949.9,2949.4,13.56123887]
[1752549991017,0.6311,2949.9,2949.5,3.39038792]
[1752549991224,4.02106767,2949.9,2949.4,10.1708]
[1752549991373,0.8288,2949.9,2949.4,0.002]
[1752549991571,0.4623,2949.8,2949.4,0.002]
[1752549991773,5.755,2949.7,2949.4,3.39243093]
[1752549991978,3.38957437,2950.3,2949.4,0.002]
[1752549991979,0.8288,2950.3,2949.4,0.002]
[1752549992199,5.755,2950.2,2949.5,0.37314714]
[1752549992398,5.755,2950.2,2950.0,3.38975729]
[1752549992613,5.755,2950.2,2949.7,0.55]
[1752549992815,5.755,2950.2,2949.8,0.0339006]
[1752549993047,5.755,2950.2,2950.1,3.3897156]
[1752549993228,0.8288,2950.7,2950.3,3.38940174]
[1752549993410,0.8288,2950.7,2949.9,0.4568]
[1752549993411,5.754,2950.6,2949.9,0.4568]
[1752549993610,5.754,2950.6,2949.8,0.18589006]
[1752549993923,9.14321186,2950.6,2949.9,3.3898785]
[1752549994238,5.754,2950.6,2950.0,3.38978905]
[1752549994454,9.14314537,2950.6,2949.9,3.38992938]
[1752549994947,9.14314537,2950.6,2950.0,3.38982966]
[1752549995325,5.754,2950.6,2950.1,3.38971504]
[1752549995526,5.754,2950.6,2950.1,3.38962295]
[1752549995843,9.60551838,2950.6,2949.9,10.0]
[1752549995996,9.60551838,2950.6,2950.0,3.38976241]
[1752549996193,6.2163,2950.6,2950.2,3.3895351]
[1752549996439,6.2163,2950.6,2950.0,3.38975539]
[1752549996606,3.38925605,2950.5,2949.9,3.38983575]
[1752549996791,6.2163,2950.6,2949.9,3.38993826]
[1752549997130,0.4623,2950.5,2949.6,3.3902902]
[1752549997439,3.38942142,2950.4,2949.8,3.39005069]
[1752549997614,3.85159565,2950.5,2949.9,3.38994108]
[1752549997809,4.39950471,2950.5,2949.9,3.38994108]
[1752549998014,3.38952425,2950.3,2949.7,3.39010345]
[1752549998213,5.749,2950.2,2949.8,3.39002836]
[1752549998555,5.749,2950.2,2949.7,3.39016171]
[1752549998720,4.16884521,2950.0,2949.5,10.0]
[1752549998906,9.60031725,2949.9,2949.4,0.002]
[1752549999099,6.2103,2949.9,2949.4,0.002]
[1752549999443,0.4623,2949.8,2949.4,0.002]
[1752549999828,0.4623,2949.7,2949.4,0.002]
[1752550000335,0.4623,2949.7,2949.4,3.39251518]
[1752550000540,4.16878167,2950.0,2949.4,3.39251518]
[1752550000541,3.85152103,2950.6,2949.8,3.3899974]
[1752550000743,1.2544,2950.4,2949.5,0.4599]
[1752550000935,3.3898169,2950.1,2949.5,3.39033598]
[1752550001132,3.85373518,2950.0,2949.4,3.39247654]
[1752550001443,0.7905,2950.4,2949.8,3.39006034]
[1752550001444,5.746,2949.9,2949.8,3.39006034]
[1752550001643,0.7905,2950.4,2949.6,3.3902902]
[1752550001942,0.1688,2949.8,2949.7,3.39017527]
[1752550002244,5.745,2949.8,2949.7,4.56887527]
[1752550003924,0.1688,2950.2,2949.8,3.39006034]
[1752550004299,5.9108,2950.4,2949.9,0.55]
[1752550004493,5.742,2950.3,2950.1,3.38970756]
[1752550004756,5.742,2950.3,2950.2,3.3896007]
[1752550006619,5.742,2950.3,2950.1,3.38968899]
[1752550006948,5.742,2950.3,2949.8,3.39003899]
[1752550006949,0.4639,2950.2,2949.8,3.39003899]
[1752550007113,0.1688,2950.1,2950.0,3.38973441]
[1752550008252,0.1688,2950.1,2949.8,0.1688]
[1752550008437,0.1688,2950.1,2949.8,3.39003996]
[1752550008438,0.6327,2950.1,2949.8,3.39003996]
[1752550008953,0.1688,2949.9,2949.8,13.39003996]
[1752550009152,5.9058,2949.9,2949.8,13.39003996]
[1752550009451,5.9058,2949.9,2949.4,0.002]
[1752550009452,7.61937,2949.9,2949.4,0.002]
[1752550009654,7.61937,2949.9,2949.4,3.3925031]
[1752550009655,0.7815,2949.9,2949.4,3.3925031]
[1752550009815,5.736,2949.8,2949.5,3.39036791]
[1752550010014,1.2454,2950.2,2949.6,3.39024125]
[1752550010216,6.12134217,2950.1,2949.6,3.39022404]
[1752550010454,6.58524217,2950.1,2949.6,3.39022404]
[1752550010616,6.1999,2950.1,2949.5,3.39039897]
[1752550010813,3.38983834,2950.0,2949.4,3.39248099]
[1752550011270,3.38983834,2950.0,2949.4,0.002]
[1752550011433,0.4639,2949.9,2949.4,3.39245975]
[1752550011631,0.4639,2949.8,2949.4,3.39245975]
[1752550011859,5.734,2949.7,2949.4,3.39245975]
[1752550012273,0.7815,2950.2,2949.7,3.3901092]
[1752550012584,5.734,2950.1,2949.7,3.3901092]
[1752550012741,5.734,2950.1,2949.5,0.4599]
[1752550012928,0.4639,2950.0,2949.4,0.002]
[1752550013133,3.39000725,2949.9,2949.4,0.002]
[1752550013334,3.39006365,2949.8,2949.4,0.002]
[1752550013663,4.14206472,2949.6,2949.4,0.002]
[1752550014027,3.39040515,2949.5,2949.4,0.002]
[1752550014229,3.85430515,2949.5,2949.4,0.002]
[1752550015470,0.4639,2949.5,2949.4,0.002]
[1752550015876,4.88819854,2949.5,2949.4,0.002]
[1752550018150,5.70739854,2949.5,2949.4,0.002]
[1752550018554,15.70739854,2949.5,2949.4,0.002]
[1752550019381,25.64317578,2949.5,2949.4,1e-08]
[1752550019691,15.70739854,2949.5,2949.4,1e-08]
[1752550020054,21.43339854,2949.5,2949.4,1e-08]
[1752550022324,2.31699339,2949.5,2949.4,1e-08]
[1752550022599,6.5452,2949.5,2949.4,1e-08]
[1752550022761,5.726,2949.5,2949.4,1e-08]
[1752550023274,3.39026534,2949.7,2949.4,1e-08]
[1752550023659,9.3497,2949.8,2949.4,1e-08]
[1752550023999,5.723,2949.7,2949.4,1e-08]
[1752550024201,5.723,2949.7,2949.5,3.39033302]
[1752550024391,0.1688,2949.6,2949.5,3.39033302]
[1752550024692,0.1688,2949.6,2949.5,0.4599]
[1752550024897,0.1688,2949.6,2949.4,3.39047981]
[1752550025099,5.722,2949.5,2949.4,3.85037981]
[1752550025313,8.135,2949.8,2949.7,3.39017527]
[1752550025526,14.0248,2949.8,2949.7,3.39017527]
[1752550025861,14.0248,2949.8,2949.7,3.85007527]
[1752550026357,14.0248,2949.8,2949.7,3.39017527]
[1752550026563,0.8311,2950.5,2950.1,3.38964673]
[1752550026763,5.721,2950.4,2950.2,3.38959998]
[1752550026999,5.721,2950.4,2950.3,3.38948581]
[1752550027376,8.9102,2950.8,2950.6,3.38912873]
[1752550027580,8.9102,2950.8,2950.5,3.38919809]
[1752550027581,5.719,2950.7,2950.5,3.38919809]
[1752550027762,5.719,2950.7,2950.4,3.38931993]
[1752550027964,5.719,2950.7,2950.5,3.38919091]
[1752550028164,5.719,2950.7,2950.6,3.38914119]
[1752550028871,5.719,2950.7,2950.6,3.84904119]
[1752550031094,5.719,2950.7,2950.6,0.4599]
[1752550031295,5.719,2950.7,2950.5,3.38918796]